{"text_format":"1","workbook":"xlsx","n_sheets":2,"sheets":["نموذج ادخال البيانات","تقرير الطالب"],"not_rendered":{"charts":0,"images":2,"macros":1,"external_links":0,"defined_names":2,"comments":0,"pivot_tables":0},"unopened":[],"bounds":{"document_bytes":16777216,"sheet_cells":100000,"rows_first":2000,"rows_last":500,"rows_between":2000,"halvings":0,"cell_chars":16384,"cell_head_chars":4096},"cells_cut":0,"cells_raw":0,"read":"whole","date_system":"1900"}

{"sheet":"نموذج ادخال البيانات","index":0,"n_rows":18,"n_cols":11,"rows_kept":18,"cut":false,"hidden":false,"merged":[[0,0,5,1],[2,2,3,3],[4,2,5,3],[4,4,4,5],[5,4,5,5],[0,2,1,10],[4,7,4,8],[5,7,5,8],[5,9,5,10],[4,9,4,10],[2,4,3,10]]}
[null,null,"نموذج ادخال بيانات التقرير الشهري للطالب"]
[]
[null,null,"حلقات الهدى والنور",null,"تاريخ التقرير"]
[]
[null,null,"جامع السيف",null,"اليوم",null,null,"الشهر",null,"السنة"]
[null,null,null,null,{"$f":"TEXT(TODAY(),\"B2dd\")","v":"30"},null,null,{"$f":"TEXT(TODAY(),\"b2mmm\")","v":"محرم"},null,{"$f":"TEXT(TODAY(),\"b2yyyy\")","v":"1443"}]
["م","اسم الطالب","اسم الحلقة","المستوى","المرحلة الدراسية","مقدار الحفظ بالصفحة","مقدار المراجعة بالأجزاء","عدد أيام الغياب بعذر","عدد أيام الغياب بغير عذر","نتيجة الاختبار","التقييم الشهري"]
[{"$f":"ROW(A1)","v":1},"أحمد عبيد","حلقة عبدالله بن عباس رضي الله عنه","الأول","جامعي",0,18,"لا يوجد","لا يوجد",100,"ممتاز"]
[{"$f":"ROW(A2)","v":2},"إبراهيم آدم علي","حلقة عبدالله بن عباس رضي الله عنه","الأول","تمهيدي",0,10,"لا يوجد",3,99,"ممتاز"]
[{"$f":"ROW(A3)","v":3},"عمران فيصل","حلقة عبدالله بن عباس رضي الله عنه","الأول","ابتدائي","لا يوجد",26,"لا يوجد",2,98,"ممتاز"]
[{"$f":"ROW(A4)","v":4},"سمير علي عليطو","حلقة عبدالله بن عباس رضي الله عنه","الأول","تمهيدي",0,1,"لا يوجد",2,98,"ممتاز"]
[{"$f":"ROW(A5)","v":5},"حاتم محمد الصلوي","حلقة عبدالله بن عباس رضي الله عنه","الأول","ابتدائي",0,13,"لا يوجد",2,98,"ممتاز"]
[{"$f":"ROW(A6)","v":6},"منصور احمد منصور","حلقة عبدالله بن عباس رضي الله عنه","الأول","ابتدائي",0,28,"لا يوجد",2,98,"ممتاز"]
[{"$f":"ROW(A7)","v":7},"عبدالملك دخيل القرشي","حلقة عبدالله بن عباس رضي الله عنه","الأول","ابتدائي",0,24,"لا يوجد",1,97,"ممتاز"]
[{"$f":"ROW(A8)","v":8},"ريان دخيل القرشي","حلقة عبدالله بن عباس رضي الله عنه","الأول","ابتدائي",0,26,"لا يوجد",1,97,"ممتاز"]
[{"$f":"ROW(A9)","v":9},"عبدالعزيز علي عليطو","حلقة عبدالله بن عباس رضي الله عنه","الأول","تمهيدي",0,13,"لا يوجد",4,97,"ممتاز"]
[{"$f":"ROW(A10)","v":10},"مروان بندر اللحياني","حلقة عبدالله بن عباس رضي الله عنه","الأول","ابتدائي",0,14,1,3,97,"ممتاز"]
[{"$f":"ROW(A11)","v":11},"محمد علي عليطو","حلقة عبدالله بن عباس رضي الله عنه","الأول","تمهيدي",0,10,"لا يوجد",4,96,"ممتاز"]

{"sheet":"تقرير الطالب","index":1,"n_rows":26,"n_cols":13,"rows_kept":26,"cut":false,"hidden":false,"merged":[[0,0,10,4],[11,1,14,1],[16,1,21,1]]}
[]
[]
[]
[null,null,null,null,null,null,null,null,null,null,null,null,{"$f":"IFERROR(INDEX(الجدول1[اسم الطالب],MATCH(0,INDEX(COUNTIF($M$3:M3,الجدول1[اسم الطالب]),),0)),\"\")","v":"أحمد عبيد"}]
[null,null,null,null,null,null,null,null,null,null,null,null,{"$f":"IFERROR(INDEX(الجدول1[اسم الطالب],MATCH(0,INDEX(COUNTIF($M$3:M4,الجدول1[اسم الطالب]),),0)),\"\")","v":"إبراهيم آدم علي"}]
[null,null,null,null,null,null,null,null,null,null,null,null,{"$f":"IFERROR(INDEX(الجدول1[اسم الطالب],MATCH(0,INDEX(COUNTIF($M$3:M5,الجدول1[اسم الطالب]),),0)),\"\")","v":"عمران فيصل"}]
[null,null,null,null,null,null,null,null,null,null,null,null,{"$f":"IFERROR(INDEX(الجدول1[اسم الطالب],MATCH(0,INDEX(COUNTIF($M$3:M6,الجدول1[اسم الطالب]),),0)),\"\")","v":"سمير علي عليطو"}]
[null,null,null,null,null,null,null,null,null,null,null,null,{"$f":"IFERROR(INDEX(الجدول1[اسم الطالب],MATCH(0,INDEX(COUNTIF($M$3:M7,الجدول1[اسم الطالب]),),0)),\"\")","v":"حاتم محمد الصلوي"}]
[null,null,null,null,null,null,null,null,null,null,null,null,{"$f":"IFERROR(INDEX(الجدول1[اسم الطالب],MATCH(0,INDEX(COUNTIF($M$3:M8,الجدول1[اسم الطالب]),),0)),\"\")","v":"منصور احمد منصور"}]
[null,null,null,null,null,null,null,null,null,null,null,null,{"$f":"IFERROR(INDEX(الجدول1[اسم الطالب],MATCH(0,INDEX(COUNTIF($M$3:M9,الجدول1[اسم الطالب]),),0)),\"\")","v":"عبدالملك دخيل القرشي"}]
[null,null,null,null,null,null,null,null,null,null,null,null,{"$f":"IFERROR(INDEX(الجدول1[اسم الطالب],MATCH(0,INDEX(COUNTIF($M$3:M10,الجدول1[اسم الطالب]),),0)),\"\")","v":"ريان دخيل القرشي"}]
[null,"المعلومات الشخصية","اسم الطالب",null,null,null,null,null,null,null,null,null,{"$f":"IFERROR(INDEX(الجدول1[اسم الطالب],MATCH(0,INDEX(COUNTIF($M$3:M11,الجدول1[اسم الطالب]),),0)),\"\")","v":"عبدالعزيز علي عليطو"}]
[null,null,"اسم الحلقة",{"$f":"INDEX('نموذج ادخال البيانات'!$B$7:$K$18,MATCH(D$12,'نموذج ادخال البيانات'!$B$7:$B$18,0),MATCH($C13,'نموذج ادخال البيانات'!$B$7:$K$7,0))","v":{"$error":"#N/A"}},null,null,null,null,null,null,null,null,{"$f":"IFERROR(INDEX(الجدول1[اسم الطالب],MATCH(0,INDEX(COUNTIF($M$3:M12,الجدول1[اسم الطالب]),),0)),\"\")","v":"مروان بندر اللحياني"}]
[null,null,"المستوى",{"$f":"INDEX('نموذج ادخال البيانات'!$B$7:$K$18,MATCH(D$12,'نموذج ادخال البيانات'!$B$7:$B$18,0),MATCH($C14,'نموذج ادخال البيانات'!$B$7:$K$7,0))","v":{"$error":"#N/A"}}]
[null,null,"المرحلة الدراسية",{"$f":"INDEX('نموذج ادخال البيانات'!$B$7:$K$18,MATCH(D$12,'نموذج ادخال البيانات'!$B$7:$B$18,0),MATCH($C15,'نموذج ادخال البيانات'!$B$7:$K$7,0))","v":{"$error":"#N/A"}}]
[null,null,null,null,null,null,null,null,null,null,null,null,{"$f":"IFERROR(INDEX(الجدول1[اسم الطالب],MATCH(0,INDEX(COUNTIF($M$3:M13,الجدول1[اسم الطالب]),),0)),\"\")","v":"محمد علي عليطو"}]
[null,"أداء الطالب في الحلقة","مقدار الحفظ بالصفحة",{"$f":"INDEX('نموذج ادخال البيانات'!$B$7:$K$18,MATCH(D$12,'نموذج ادخال البيانات'!$B$7:$B$18,0),MATCH($C17,'نموذج ادخال البيانات'!$B$7:$K$7,0))","v":{"$error":"#N/A"}},null,null,null,null,null,null,null,null,{"$f":"IFERROR(INDEX(الجدول1[اسم الطالب],MATCH(0,INDEX(COUNTIF($M$3:M16,الجدول1[اسم الطالب]),),0)),\"\")","v":""}]
[null,null,"مقدار المراجعة بالأجزاء",{"$f":"INDEX('نموذج ادخال البيانات'!$B$7:$K$18,MATCH(D$12,'نموذج ادخال البيانات'!$B$7:$B$18,0),MATCH($C18,'نموذج ادخال البيانات'!$B$7:$K$7,0))","v":{"$error":"#N/A"}},null,null,null,null,null,null,null,null,{"$f":"IFERROR(INDEX(الجدول1[اسم الطالب],MATCH(0,INDEX(COUNTIF($M$3:M17,الجدول1[اسم الطالب]),),0)),\"\")","v":""}]
[null,null,"عدد أيام الغياب بعذر",{"$f":"INDEX('نموذج ادخال البيانات'!$B$7:$K$18,MATCH(D$12,'نموذج ادخال البيانات'!$B$7:$B$18,0),MATCH($C19,'نموذج ادخال البيانات'!$B$7:$K$7,0))","v":{"$error":"#N/A"}},null,null,null,null,null,null,null,null,{"$f":"IFERROR(INDEX(الجدول1[اسم الطالب],MATCH(0,INDEX(COUNTIF($M$3:M18,الجدول1[اسم الطالب]),),0)),\"\")","v":""}]
[null,null,"عدد أيام الغياب بغير عذر",{"$f":"INDEX('نموذج ادخال البيانات'!$B$7:$K$18,MATCH(D$12,'نموذج ادخال البيانات'!$B$7:$B$18,0),MATCH($C20,'نموذج ادخال البيانات'!$B$7:$K$7,0))","v":{"$error":"#N/A"}}]
[null,null,"نتيجة الاختبار",{"$f":"INDEX('نموذج ادخال البيانات'!$B$7:$K$18,MATCH(D$12,'نموذج ادخال البيانات'!$B$7:$B$18,0),MATCH($C21,'نموذج ادخال البيانات'!$B$7:$K$7,0))","v":{"$error":"#N/A"}},null,null,null,null,null,null,null,null,{"$f":"IFERROR(INDEX(الجدول1[اسم الطالب],MATCH(0,INDEX(COUNTIF($M$3:M19,الجدول1[اسم الطالب]),),0)),\"\")","v":""}]
[null,null,"التقييم الشهري",{"$f":"INDEX('نموذج ادخال البيانات'!$B$7:$K$18,MATCH(D$12,'نموذج ادخال البيانات'!$B$7:$B$18,0),MATCH($C22,'نموذج ادخال البيانات'!$B$7:$K$7,0))","v":{"$error":"#N/A"}},null,null,null,null,null,null,null,null,{"$f":"IFERROR(INDEX(الجدول1[اسم الطالب],MATCH(0,INDEX(COUNTIF($M$3:M21,الجدول1[اسم الطالب]),),0)),\"\")","v":""}]
[null,null,null,null,null,null,null,null,null,null,null,{"$f":"IFERROR(INDEX(الجدول1[اسم الطالب],MATCH(0,INDEX(COUNTIF($M$3:M22,الجدول1[اسم الطالب]),),0)),\"\")","v":""}]
[]
[]
[null,null,"تاريخ الطباعة",{"$f":"TODAY()","v":"2021-09-07"}]